bitfinex-derivatives/quotes_BNBF0:USTF0_20250309
["timestamp","ask_amount","ask_price","bid_price","bid_amount"]
[1741545503687,8.16453091,554.15,553.59,0.3612782]
[1741545503885,9.92740466,554.14,553.59,0.3612782]
[1741545504087,8.16453091,554.13,552.63,1.32397652]
[1741545504276,8.16453091,554.12,552.65,0.36189269]
[1741545504584,1.76287375,554.07,552.66,0.30262076]
[1741545504784,5.81007643,554.06,552.67,0.30262076]
[1741545504985,8.16717654,554.05,552.68,0.30262076]
[1741545505177,1.07429368,554.03,552.66,0.30262076]
[1741545505378,1.76287375,553.98,552.66,0.30262076]
[1741545505580,4.73578275,553.97,552.83,1.32397652]
[1741545505783,8.16717654,553.96,552.84,0.30262076]
[1741545505983,9.93005029,553.95,552.84,0.30262076]
[1741545506184,8.16717654,553.94,552.84,0.30262076]
[1741545506380,8.16717654,553.93,552.84,0.30262076]
[1741545506582,8.16717654,553.92,552.84,0.30262076]
[1741545506782,8.16717654,553.91,552.84,0.30262076]
[1741545506982,9.93005029,553.9,552.84,0.30262076]
[1741545507183,8.16717654,553.89,552.84,0.30262076]
[1741545507382,8.16717654,553.88,552.84,0.30262076]
[1741545507583,9.93005029,553.87,552.84,0.30262076]
[1741545507885,11.91514267,553.86,552.84,0.30262076]
[1741545508087,1.07429368,553.83,552.84,0.30262076]
[1741545508385,8.16717654,553.82,552.84,0.30262076]
[1741545508585,8.15075745,553.81,552.84,0.30262076]
[1741545508785,8.15075745,553.8,552.66,0.30262076]
[1741545508979,9.9136312,553.79,552.67,0.30262076]
[1741545509180,8.15075745,553.78,552.66,0.30262076]
[1741545509385,8.15075745,553.77,552.66,0.30262076]
[1741545509679,8.15075745,553.76,552.66,0.30262076]
[1741545509881,3.74796613,553.78,552.66,0.30262076]
[1741545509882,8.15075745,553.75,552.66,0.30262076]
[1741545510084,8.15075745,553.74,552.66,0.30262076]
[1741545510280,8.15075745,553.73,552.66,0.30262076]
[1741545510481,8.15075745,553.72,552.66,0.30262076]
[1741545510685,8.15075745,553.71,552.66,0.30262076]
[1741545510889,8.15075745,553.7,552.66,0.30262076]
[1741545511081,8.15075745,553.69,552.65,0.36189269]
[1741545511287,4.71903423,553.68,552.66,0.30277179]
[1741545511486,4.71903423,553.67,552.66,0.30277179]
[1741545511687,4.71942615,553.66,552.67,0.30275588]
[1741545511888,4.71942615,553.65,552.68,0.30275588]
[1741545512087,1.12036059,553.64,552.66,0.30275588]
[1741545512389,1.11652827,553.63,552.67,0.30275588]
[1741545512588,1.11652827,553.62,552.66,0.30275588]
[1741545512788,3.74796613,553.62,552.67,0.30275588]
[1741545512984,3.74796613,553.62,552.66,0.30275588]
[1741545512985,1.1166237,553.61,552.66,0.30275588]
[1741545513186,1.1166237,553.6,552.66,0.30275588]
[1741545513490,1.1166237,553.59,552.66,0.30275588]
[1741545513788,3.74796613,553.59,552.66,0.30275588]
[1741545514190,3.74796613,553.58,552.66,0.30275588]
[1741545515090,1.43998045,553.57,552.66,0.30275588]
[1741545515587,1.76287375,553.86,552.66,0.30275588]
[1741545515787,0.31452936,553.56,552.66,0.30275588]
[1741545515991,4.70617526,553.84,552.66,0.30275588]
[1741545516291,5.24804646,553.83,552.66,0.30275588]
[1741545516591,4.82330496,553.82,552.66,0.30275588]
[1741545516892,2.90033448,553.81,552.66,0.30275588]
[1741545517092,4.70650923,553.8,552.66,0.30275588]
[1741545517292,4.70650923,553.79,552.66,0.30275588]
[1741545517491,1.11542103,553.78,552.66,0.30275588]
[1741545517690,1.11542103,553.77,552.68,0.36187305]
[1741545517894,4.82330496,553.76,552.69,0.30275588]
[1741545518092,1.11542103,553.75,552.69,0.30275588]
[1741545518389,1.11542103,553.74,552.71,0.36185341]
[1741545518592,1.11542103,553.73,552.72,0.30266584]
[1741545518794,1.11522248,553.72,552.72,0.30266584]
[1741545518995,3.70788393,553.72,552.72,0.30266584]
[1741545519593,3.70788393,553.71,552.72,0.30266584]
[1741545520393,1.4261092,553.7,552.74,0.36183377]
[1741545520593,1.4261092,553.7,552.75,0.30266584]
[1741545520790,1.4261092,553.7,552.77,0.36181413]
[1741545520994,1.4261092,553.7,552.78,0.30266584]
[1741545521194,1.4261092,553.69,552.8,0.3617945]
[1741545521395,1.4261092,553.69,552.81,0.30266584]
[1741545521696,0.31448814,553.68,552.81,0.30266584]
[1741545522092,1.74059734,553.68,552.83,0.36177486]
[1741545522391,1.74059734,553.68,552.84,0.30266584]
[1741545522590,1.4261092,553.67,552.84,0.30266584]
[1741545522789,1.4261092,553.67,552.86,0.36175523]
[1741545523097,1.4261092,553.66,552.87,0.30266584]
[1741545523287,2.4411092,553.66,552.87,0.30266584]
[1741545523488,2.4411092,553.66,552.88,0.36174215]
[1741545523689,2.4411092,553.66,552.89,0.30266584]
[1741545523889,2.4411092,553.66,552.9,0.36172906]
[1741545524098,3.70779902,553.65,552.91,0.30266584]
[1741545524290,3.70779902,553.65,552.92,0.36171598]
[1741545524494,3.70779902,553.65,552.93,0.30266584]
[1741545524690,1.74063856,553.64,552.94,0.36170289]
[1741545524891,1.74063856,553.64,552.95,0.30266584]
[1741545525191,1.4261092,553.63,552.96,0.36168981]
[1741545525394,1.4261092,553.63,552.97,0.30266584]
[1741545525696,1.4261092,553.62,552.98,0.66442501]
[1741545525891,1.4261092,553.62,552.99,0.30274828]
[1741545526096,1.4261092,553.61,552.99,0.66441847]
[1741545526391,1.4261092,553.61,553.0,0.66441193]
[1741545526596,1.4261092,553.6,553.01,0.66440539]
[1741545526792,1.4261092,553.6,553.02,0.66439885]
[1741545526997,1.4261092,553.6,553.03,0.30274828]
[1741545527193,1.4261092,553.59,553.03,0.66439231]
[1741545527399,1.4261092,553.59,553.04,0.30274828]
[1741545527899,0.31452936,553.64,553.04,0.30274828]
[1741545528599,1.015,553.66,553.04,0.30274828]
[1741545530696,0.31445688,553.65,553.04,0.30274828]
[1741545531902,1.42577368,553.64,553.04,0.30274828]
[1741545532303,1.42577368,553.63,553.04,0.30274828]
[1741545532703,0.31445688,553.65,553.04,0.30274828]
[1741545533204,1.42564913,553.64,553.05,0.36163095]
[1741545533404,1.42564913,553.64,553.06,0.30274828]
[1741545533805,1.42564913,553.63,553.07,0.36161787]
[1741545534006,1.42564913,553.63,553.08,0.30274828]
[1741545534201,1.42564913,553.63,553.09,0.3616048]
[1741545534606,1.42564913,553.62,553.1,0.30274828]
[1741545534806,1.11484748,553.61,553.1,0.30274828]
[1741545535006,1.11484748,553.6,553.1,0.30274828]
[1741545535201,1.11484748,553.59,553.1,0.30274828]
[1741545535406,4.82087496,553.58,553.1,0.30274828]
[1741545535608,1.11484748,553.57,553.1,0.30274828]
[1741545535809,3.70602748,553.58,553.1,0.30274828]
[1741545536006,3.70602748,553.56,553.1,0.30274828]
[1741545536610,1.42564913,553.55,553.1,0.30274828]
[1741545536802,1.7401657,553.55,553.1,0.30274828]
[1741545537006,3.70698828,553.54,553.1,0.30274828]
[1741545537206,3.70698828,553.54,553.11,0.36159172]
[1741545537402,1.42564913,553.53,553.12,0.30274828]
[1741545537603,1.42564913,553.53,553.11,0.36159172]
[1741545538009,3.70716177,553.52,553.11,0.36159172]
[1741545538308,1.42564913,553.51,553.11,0.36159172]
[1741545538901,1.11540175,553.5,553.11,0.36159172]
[1741545539106,3.70705286,553.5,553.11,0.36159172]
[1741545539504,4.82196099,553.49,553.11,0.36159172]
[1741545539705,4.02170735,553.49,553.11,0.36159172]
[1741545539907,1.11479029,553.48,553.11,0.36159172]
[1741545540112,1.11479029,553.47,553.11,0.36159172]
[1741545540309,1.11479029,553.46,553.11,0.36159172]
[1741545540504,2.54043942,553.45,553.11,0.36159172]
[1741545540809,1.11457557,553.44,553.11,0.36159172]
[1741545541009,1.11457557,553.43,553.11,0.36159172]
[1741545541210,1.11457557,553.42,553.11,0.36159172]
[1741545541410,1.11458317,553.41,553.11,0.36159172]
[1741545541606,3.70705286,553.41,553.11,0.36159172]
[1741545542211,1.42564913,553.4,553.11,0.36159172]
[1741545542905,4.81745693,553.39,553.11,0.36159172]
[1741545543211,1.113636,553.38,552.13,1.32397652]
[1741545543410,1.113636,553.37,552.15,0.36222041]
[1741545543606,2.8949831,553.36,552.15,0.36222041]
[1741545543812,5.24483641,553.35,552.16,0.30291081]
[1741545544014,4.70250368,553.34,552.17,0.30291081]
[1741545544209,6.59880403,553.33,552.18,0.30291081]
[1741545544410,4.70269664,553.32,552.19,0.30291081]
[1741545544612,5.24509424,553.31,552.16,0.30291081]
[1741545544810,5.24509424,553.3,552.15,0.36222041]
[1741545545012,5.24509424,553.29,552.17,0.30300752]
[1741545545218,4.70269664,553.28,552.18,0.30300752]
[1741545545409,4.70269664,553.27,552.18,0.30300752]
[1741545545611,8.13802826,553.26,552.16,0.30300752]
[1741545545814,5.24511742,553.25,552.17,0.30300752]
[1741545546116,3.70382093,553.26,552.15,0.36222041]
[1741545546117,2.8949831,553.24,552.18,0.30300752]
[1741545546316,3.70382093,553.26,552.16,0.30300752]
[1741545546517,0.31465449,553.49,552.17,0.30300752]
[1741545546818,5.24535156,553.48,552.18,0.30300752]
[1741545547119,3.70166745,553.25,552.19,0.30300752]
[1741545547319,1.11371755,553.24,552.2,0.30300752]
[1741545547517,2.89545698,553.23,552.21,0.30300752]
[1741545547720,2.89545698,553.22,552.22,0.30300752]
[1741545547915,1.11371755,553.21,552.23,0.30300752]
[1741545548120,1.11371755,553.2,552.16,0.30300752]
[1741545548321,3.70166745,553.22,552.17,0.30300752]
[1741545548615,3.70166745,553.2,552.18,0.30300752]
[1741545548820,1.42371825,553.19,552.19,0.30300752]
[1741545549021,1.42371825,553.19,552.2,0.30300752]
[1741545549222,1.42371825,553.18,552.21,0.30300752]
[1741545549523,1.42371825,553.18,552.22,0.30300752]
[1741545549721,0.31478115,553.17,552.23,0.30300752]
[1741545549913,0.31478115,553.17,552.24,0.30300752]
[1741545550115,0.31478115,553.17,552.25,0.30300752]
[1741545550321,0.31478115,553.17,552.26,0.30300752]
[1741545550520,0.31478115,553.17,552.15,0.36222041]
[1741545550521,0.31478115,553.17,552.27,0.30300752]
[1741545550918,0.31478115,553.17,552.28,0.30300752]
[1741545551123,1.76834349,553.62,552.28,0.30300752]
[1741545551318,0.31467868,553.27,552.29,0.30300752]
[1741545551520,0.31467868,553.27,552.3,0.30300752]
[1741545551825,8.14910243,553.59,552.31,0.30300752]
[1741545552023,8.14910243,553.58,552.32,0.30300752]
[1741545552223,9.91744592,553.57,552.33,0.30300752]
[1741545552525,8.14910243,553.56,552.34,0.30300752]
[1741545552726,4.71611474,553.55,552.35,0.30300752]
[1741545553020,4.71611474,553.55,552.15,0.36222041]
[1741545553021,8.43563847,553.54,552.16,0.30300752]
[1741545553225,1.11902821,553.53,552.17,0.30300752]
[1741545553426,1.11902821,553.52,552.18,0.30300752]
[1741545553627,1.11902821,553.51,552.19,0.30300752]
[1741545553828,1.11902821,553.5,552.2,0.30300752]
[1741545554025,1.11902821,553.49,552.21,0.30274871]
[1741545554227,1.11902821,553.48,552.22,0.30274871]
[1741545554430,4.83855194,553.47,552.23,0.30274871]
[1741545554734,1.11902821,553.46,552.24,0.30274871]
[1741545554929,1.11902821,553.45,552.16,0.30274871]
[1741545555426,1.11902821,553.44,552.16,0.30274871]
[1741545555624,1.11902821,553.45,552.16,0.30274871]
[1741545555826,4.83855194,553.44,552.17,0.30289555]
[1741545556023,1.11902821,553.43,552.17,0.30289555]
[1741545556228,3.71952373,553.44,552.18,0.30289555]
[1741545556427,1.43076372,553.42,552.19,0.30289555]
[1741545556625,1.43076372,553.42,552.2,0.30289555]
[1741545556824,1.43076372,553.42,552.21,0.30289555]
[1741545557029,1.43076372,553.41,552.16,0.30289555]
[1741545557231,1.43076372,553.41,552.17,0.30289555]
[1741545557430,1.43076372,553.4,552.18,0.30289555]
[1741545557626,1.43076372,553.4,552.19,0.30289555]
[1741545557825,1.7455107,553.4,552.15,0.36222041]
[1741545558030,1.7455107,553.4,552.16,0.30281428]
[1741545558031,1.43076372,553.39,552.16,0.30281428]
[1741545558226,1.43076372,553.39,552.17,0.30281428]
[1741545558433,1.43076372,553.38,552.18,0.30281428]
[1741545558629,1.43076372,553.38,552.19,0.30281428]
[1741545558938,1.43076372,553.38,552.2,0.30281428]
[1741545559137,0.31474698,553.4,552.21,0.30281428]
[1741545559332,0.31474698,553.4,552.22,0.30281428]
[1741545559537,0.31474698,553.4,552.15,0.36222041]
[1741545559833,0.31474698,553.4,552.16,0.30254845]
[1741545560039,0.31474698,553.4,552.17,0.30254845]
[1741545560231,0.31474698,553.4,552.18,0.30254845]
[1741545560536,0.31474698,553.4,552.19,0.30254845]
[1741545560731,0.31474698,553.4,552.15,0.36222041]
[1741545560930,0.31474698,553.4,552.16,0.30241316]
[1741545561133,1.43828948,553.39,552.18,0.36220073]
[1741545561336,1.43828948,553.39,552.19,0.30241316]
[1741545561530,1.43828948,553.39,552.2,0.30241316]
[1741545562036,0.31474698,553.4,552.21,0.30241316]
[1741545562238,0.31474698,553.4,552.22,0.30241316]
[1741545562632,0.31474698,553.4,552.23,0.30241316]
[1741545562835,1.44009849,553.39,552.24,0.30241316]
[1741545563031,1.44009849,553.39,552.26,0.36214826]
[1741545563333,0.31474698,553.4,552.27,0.30241316]
[1741545563533,1.12704429,553.46,552.28,0.30241316]
[1741545563739,0.31470002,553.38,552.29,0.30241316]
[1741545564038,2.30391796,553.5,552.3,0.30241316]
[1741545564339,2.30391796,553.5,552.31,0.30241316]
[1741545564537,1.164,553.51,552.31,0.30241316]
[1741545564732,0.31463173,553.49,552.32,0.30241316]
[1741545564934,0.31463173,553.49,552.33,0.30252638]
[1741545565133,0.31463173,553.49,552.34,0.30252638]
[1741545565338,0.31463173,553.49,552.35,0.30252638]
[1741545565541,0.31463173,553.49,552.41,1.32397652]
[1741545565736,0.31463173,553.49,552.42,0.30252638]
[1741545565934,0.31463173,553.49,552.43,0.30252638]
[1741545566137,0.31463173,553.49,552.44,0.30252638]
[1741545566333,0.31463173,553.49,552.45,0.30252638]
[1741545566535,1.164,553.51,552.41,1.32397652]
[1741545566739,0.31458622,553.48,552.46,0.30222655]
[1741545566933,0.31458622,553.48,552.47,0.30222655]
[1741545567137,0.31458622,553.48,552.48,0.30222655]
[1741545567337,1.164,553.51,552.41,1.32397652]
[1741545567338,1.164,553.51,552.49,0.30222655]
[1741545567540,1.164,553.51,552.5,0.30222655]
[1741545567737,1.164,553.51,552.51,0.30222655]
[1741545567943,1.164,553.51,552.52,0.30222655]
[1741545568138,1.164,553.51,552.53,0.30222655]
[1741545568335,1.164,553.51,552.54,0.30222655]
[1741545568738,1.164,553.51,552.26,0.36214826]
[1741545568739,1.164,553.51,552.55,0.30222655]
[1741545568937,1.164,553.51,552.56,0.30222655]
[1741545569137,1.164,553.51,552.57,0.30222655]
[1741545569338,1.164,553.51,552.58,0.30222655]
[1741545569535,1.164,553.51,552.59,0.30222655]
[1741545569734,1.164,553.51,552.6,0.30222655]
[1741545569941,1.164,553.51,552.61,0.30222655]
[1741545570142,1.164,553.51,552.62,0.30222655]
[1741545570442,1.164,553.51,552.63,0.30222655]
[1741545570643,1.164,553.51,552.64,0.30222655]
[1741545570939,1.164,553.51,552.65,0.30222655]
[1741545571144,1.164,553.51,552.66,0.30222655]
[1741545571344,1.164,553.51,552.67,0.30222655]
[1741545571541,1.164,553.51,552.68,0.30222655]
[1741545571744,1.164,553.51,552.69,0.30222655]
[1741545572043,1.164,553.51,552.64,1.32397652]
[1741545572244,1.164,553.51,552.65,0.30196399]
[1741545572644,1.164,553.51,552.66,0.30196399]
[1741545572943,0.31450235,553.57,552.67,0.30196399]
[1741545573138,0.31450235,553.57,552.68,0.30196399]
[1741545573342,0.31450235,553.57,552.69,0.30196399]
[1741545573543,0.31450235,553.57,552.7,0.30196399]
[1741545573737,0.31450235,553.57,552.64,1.32397652]
[1741545573738,0.31450235,553.57,552.71,0.30196399]
[1741545573943,0.31450235,553.57,552.64,1.32397652]
[1741545574137,0.31450235,553.57,552.65,0.30190401]
[1741545574338,0.31450235,553.57,552.66,0.30190401]
[1741545574545,0.31450235,553.57,552.67,0.30190401]
[1741545574743,1.43880633,553.86,552.68,0.30190401]
[1741545574945,0.31442847,553.67,552.7,0.36185996]
[1741545575244,0.31442847,553.67,552.71,0.30190401]
[1741545575444,1.43880633,553.84,552.72,0.30190401]
[1741545575845,1.43880633,553.84,552.73,0.30190401]
[1741545576044,2.30302389,553.97,552.74,0.30190401]
[1741545576341,2.30302389,553.97,552.76,0.36182068]
[1741545576545,4.28234501,554.18,552.77,0.30190401]
[1741545576747,0.31443131,553.96,552.78,0.30190401]
[1741545577041,11.35923093,554.16,552.79,0.30190401]
[1741545577239,0.31438018,553.95,552.8,0.30190401]
[1741545577445,2.92404793,554.14,552.8,0.30190401]
[1741545577646,5.81927824,554.13,552.81,0.30190401]
[1741545577844,3.46574713,554.12,552.77,0.30190401]
[1741545578045,8.16049495,554.11,552.77,0.30190401]
[1741545578247,11.90116475,554.1,552.77,0.30190401]
[1741545578446,8.16046732,554.09,552.77,0.30190401]
[1741545578647,8.16046732,554.08,552.77,0.30190401]
[1741545578848,8.16046732,554.07,552.77,0.30190401]
[1741545579146,7.61918295,554.06,552.77,0.30190401]
[1741545579348,4.72963964,554.05,552.77,0.30190401]
[1741545579548,7.61936622,554.04,552.77,0.30190401]
[1741545579743,7.61932176,554.03,552.77,0.30190401]
[1741545579948,4.72963964,554.02,552.79,0.36180104]
[1741545580247,4.72963964,554.01,552.8,0.30190401]
[1741545580445,2.93021955,554.0,552.8,0.30190401]
[1741545580648,1.12463755,553.99,552.82,0.36178141]
[1741545580958,1.12463755,554.0,552.83,0.30190401]
[1741545581246,1.43764591,553.98,552.85,0.36176177]
[1741545581447,2.56228346,553.99,552.86,0.30190401]
[1741545581743,2.56228346,553.99,552.88,0.36174215]
[1741545581948,2.56228346,553.99,552.89,0.30190401]
[1741545582144,1.43764591,553.98,552.89,0.30190401]
[1741545582345,2.56228346,553.98,552.91,0.36172252]
[1741545582546,1.43764591,553.98,552.92,0.30190401]
[1741545582849,1.75204171,553.97,552.92,0.30190401]
[1741545583047,1.12444529,553.96,552.92,0.30190401]
[1741545583254,4.72950228,553.95,552.92,0.30190401]
[1741545583551,11.90146667,553.94,552.92,0.30190401]
[1741545583744,8.16079687,553.93,552.92,0.30190401]
[1741545583944,8.16079687,553.92,552.92,0.30190401]
[1741545584155,4.72950228,553.91,552.94,0.36170289]
[1741545584352,4.72950228,553.9,552.95,0.30190401]
[1741545584552,2.93038981,553.89,552.97,0.36168327]
[1741545584853,3.7406698,553.89,552.98,0.30190401]
[1741545585047,3.7406698,553.89,553.0,0.36166365]
[1741545585251,3.7406698,553.89,553.01,0.30190401]
[1741545585450,3.7406698,553.89,553.03,0.36164403]
[1741545585656,1.43764591,553.88,553.04,0.30190401]
[1741545585948,1.43764591,553.88,553.06,0.36162441]
[1741545586148,1.43764591,553.88,553.07,0.30190401]
[1741545586452,1.43764591,553.87,553.07,0.30190401]
[1741545587050,1.43764591,553.86,553.07,0.30190401]
[1741545587748,1.43764591,553.86,553.08,0.30190401]
[1741545587952,1.43764591,553.86,553.09,0.30190401]
[1741545588152,1.43764591,553.85,552.48,0.30190401]
[1741545588357,1.43764591,553.85,552.49,0.30190401]
[1741545588555,0.31436882,553.9,552.49,0.30190401]
[1741545588855,0.31436882,553.9,552.5,0.30190401]
[1741545589051,1.43611143,553.89,552.47,1.32397652]
[1741545589253,1.43611143,553.89,552.48,0.30167277]
[1741545589448,1.43611143,553.89,552.49,0.30167277]
[1741545589651,1.43611143,553.88,552.5,0.30167277]
[1741545589861,1.43611143,553.88,552.51,0.30167277]
[1741545590054,1.43611143,553.88,552.52,0.30167277]
[1741545590257,6.16250322,553.87,552.53,0.30167277]
[1741545590456,1.12335864,553.86,552.54,0.30167277]
[1741545590653,1.12335864,553.86,552.49,1.32397652]
[1741545590654,1.12335864,553.86,552.55,0.30167277]
[1741545590858,1.43611143,553.85,552.56,0.30167277]
[1741545591059,1.43611143,553.85,552.57,0.30167277]
[1741545591258,1.43611143,553.85,552.58,0.30167277]
[1741545591465,2.55954678,553.84,552.59,0.30167277]
[1741545591657,1.12343535,553.83,552.6,0.30167277]
[1741545591853,1.12343535,553.82,552.6,0.30167277]
[1741545592057,1.12343535,553.81,552.61,0.30167277]
[1741545592268,1.12343535,553.8,552.62,0.30167277]
[1741545592452,3.73396485,553.82,552.63,0.30167277]
[1741545592453,1.12343535,553.79,552.63,0.30167277]
[1741545592658,3.73396485,553.79,552.64,0.30167277]
[1741545592854,3.73396485,553.79,552.65,0.30167277]
[1741545593154,1.12357077,553.78,552.66,0.30167277]
[1741545593465,3.73396485,553.78,552.67,0.30167277]
[1741545593659,1.12359117,553.77,552.67,0.30167277]
[1741545593860,3.73396485,553.77,552.68,0.30167277]
[1741545594261,0.31436882,553.9,552.51,1.32397652]
[1741545594262,1.43611143,553.76,552.69,0.30167277]
[1741545594464,1.43611143,553.76,552.7,0.30167277]
[1741545594657,1.43611143,553.76,552.52,0.30167277]
[1741545594860,1.43611143,553.76,552.51,1.32397652]
[1741545594861,1.43611143,553.76,552.53,0.30167277]
[1741545595162,0.31446825,553.75,552.54,0.30167277]
[1741545595357,0.31446825,553.75,552.55,0.30167277]
[1741545595561,0.31446825,553.75,552.1,2.70311874]
[1741545595562,0.31446825,553.75,552.47,1.32397652]
[1741545595858,0.31446825,553.75,552.48,0.30172794]
[1741545596058,0.31446825,553.75,552.49,0.30172794]
[1741545596365,0.31446825,553.75,552.5,0.30172794]
[1741545596564,2.29785342,553.86,552.51,0.30172794]
[1741545596761,2.29785342,553.86,552.47,1.32397652]
[1741545596762,2.29785342,553.86,552.52,0.30172794]
[1741545596962,1.43584148,553.85,552.53,0.30172794]
[1741545597265,1.43584148,553.85,552.54,0.30172794]
[1741545597462,1.43584148,553.84,552.55,0.30172794]
[1741545597761,1.75028558,553.84,552.56,0.30172794]
[1741545597958,1.75028558,553.84,552.57,0.30172794]
[1741545598162,0.3144441,553.84,552.58,0.30172794]
[1741545598363,0.3144441,553.84,552.59,0.30172794]
[1741545598662,0.3144441,553.84,552.6,0.30172794]
[1741545598863,0.3144441,553.84,552.46,1.32397652]
[1741545598864,1.43549494,553.83,552.47,0.30172794]
[1741545599058,1.43549494,553.83,552.48,0.30172794]
[1741545599264,1.43549494,553.82,552.49,0.30172794]
[1741545599462,1.43549494,553.82,552.5,0.30172794]
[1741545599765,1.74996745,553.81,552.51,0.30172794]
[1741545599958,1.74996745,553.81,552.52,0.30172794]
[1741545600163,1.74996745,553.81,552.62,1.32397652]
[1741545600359,1.43549494,553.8,552.63,0.30172794]
[1741545600564,1.43549494,553.79,552.63,0.30172794]
[1741545600966,1.12311632,553.78,552.64,0.30172794]
[1741545601166,1.43549494,553.79,552.65,0.30172794]
[1741545601367,3.73334836,553.77,552.66,0.30172794]
[1741545601666,1.12306038,553.76,552.67,0.30172794]
[1741545601868,3.73334836,553.77,552.68,0.30172794]
[1741545602068,3.73334836,553.75,552.62,1.32397652]
[1741545602362,1.43549494,553.74,552.63,0.30221221]
[1741545602667,1.43549494,553.74,552.64,0.30221221]
[1741545602869,0.31447251,553.81,552.65,0.30221221]
[1741545603164,0.31447251,553.81,552.79,1.32397652]
[1741545603364,0.31447251,553.81,552.8,0.30221221]
[1741545603560,0.31447251,553.81,552.81,0.30221221]
[1741545603776,0.31447251,553.81,552.82,0.30221221]
[1741545603962,0.31447251,553.81,552.83,0.30221221]
[1741545604162,0.31447251,553.81,552.84,0.30221221]
[1741545604463,0.31447251,553.81,552.85,0.30221221]
[1741545604764,0.31447251,553.81,552.86,0.30221221]
[1741545605063,0.31447251,553.81,552.87,0.30221221]
[1741545605268,0.31447251,553.81,552.88,0.30221221]
[1741545605464,0.31447251,553.81,553.09,1.32397652]
[1741545605666,0.31447251,553.81,553.1,0.30221221]
[1741545607269,0.31447251,553.81,553.04,0.30221221]
[1741545607464,0.31447251,553.81,553.05,0.30221221]
[1741545607765,0.31447251,553.81,553.06,0.30221221]
[1741545607967,0.31447251,553.81,553.07,0.30221221]
[1741545608167,0.31447251,553.81,553.04,0.30221221]
[1741545608468,3.73419758,554.01,553.05,0.36163095]
[1741545608669,2.29703725,554.17,553.06,0.30221221]
[1741545608871,0.31428933,553.88,553.06,0.30221221]
[1741545609071,1.12444874,554.15,553.06,0.30221221]
[1741545609271,2.29703725,554.17,553.06,0.30221221]
[1741545609474,3.73446524,554.15,553.07,0.30221221]
[1741545609771,3.73446524,554.15,553.05,0.36163095]
[1741545609772,3.73446524,554.15,553.08,0.30221221]
[1741545610171,1.43742799,554.14,553.09,0.30221221]
[1741545610466,1.12462152,554.13,553.1,0.30221221]
[1741545610672,2.92970703,554.12,553.06,0.30221221]
[1741545610871,4.72933727,554.11,553.14,1.32397652]
[1741545611069,8.15945832,554.1,553.15,0.30221221]
[1741545611265,8.15945832,554.09,553.15,0.30221221]
[1741545611468,7.61782423,554.08,553.15,0.30221221]
[1741545611671,8.15993139,554.07,553.15,0.30221221]
[1741545611866,8.15993139,554.06,553.15,0.30221221]
[1741545612166,11.89439403,554.05,553.15,0.30221221]
[1741545612373,8.15992879,554.04,553.15,0.30221221]
[1741545612567,8.15992879,554.03,553.15,0.30221221]
[1741545612872,11.89439403,554.02,553.15,0.30221221]
[1741545613068,4.53679902,554.01,553.15,0.30221221]
[1741545613274,8.16198118,554.0,553.15,0.30221221]
[1741545613474,1.07087711,553.98,553.15,0.30221221]
[1741545613675,1.76834349,553.95,553.15,0.30221221]
[1741545613975,4.7304284,553.94,553.16,0.30221221]
[1741545614168,1.76834349,553.9,553.06,0.30221221]
[1741545614370,1.07087711,553.88,553.05,0.36163095]
[1741545614570,1.07087711,553.83,553.05,0.36163095]
[1741545614775,1.76834349,553.77,553.05,0.36163095]
[1741545614971,1.80617664,553.76,553.05,0.36163095]
[1741545615168,1.07341815,553.64,553.05,0.36163095]
[1741545615369,1.76834349,553.57,553.0,1.32397652]
[1741545615572,4.7369606,553.56,553.0,1.32397652]
[1741545615876,8.17111444,553.55,553.0,1.32397652]
[1741545616178,8.17111444,553.54,553.0,1.32397652]
[1741545616375,8.17111444,553.53,553.0,1.32397652]
[1741545616571,1.07341815,553.49,552.48,1.32397652]
[1741545616775,9.93945793,553.52,552.48,1.32397652]
[1741545616776,1.07341815,553.46,552.49,0.66489718]
[1741545616977,4.73614295,553.45,552.5,0.30289968]
[1741545617177,8.17047665,553.44,552.5,0.30289968]
[1741545617378,8.17047665,553.43,552.5,0.30289968]
[1741545617673,8.17047665,553.42,552.5,0.30289968]
[1741545617978,1.76834349,553.36,552.5,0.30289968]
[1741545618171,2.93386999,553.35,552.5,0.30289968]
[1741545618371,7.62806198,553.34,552.5,0.30289968]
[1741545618571,8.17047665,553.33,552.5,0.30289968]
[1741545618774,8.17047665,553.32,552.51,0.36198439]
[1741545618974,8.17047665,553.31,552.52,0.30289968]
[1741545619175,8.17047665,553.3,552.52,0.30289968]
[1741545619380,1.07322014,553.27,552.51,0.36198439]
[1741545619579,4.73614295,553.26,552.51,0.36198439]
[1741545619877,1.76834349,553.2,552.51,0.36198439]
[1741545620077,4.73614295,553.19,552.51,0.36198439]
[1741545620278,8.17047665,553.18,552.51,0.36198439]
[1741545620474,8.16145088,553.17,552.51,0.36198439]
[1741545620674,8.16048069,553.16,552.51,0.36198439]
[1741545620875,8.16048069,553.15,552.51,0.36198439]
[1741545621079,1.76834349,553.12,552.51,0.36198439]
[1741545621279,4.72587584,553.11,552.51,0.36198439]
[1741545621483,1.76834349,553.09,552.51,0.36198439]
[1741545621682,1.06961029,553.01,552.51,0.36198439]
[1741545621883,6.33817195,553.0,552.51,0.36198439]